Workbook

Sheet 5 класс
B1: 5 класс Литература (школьный этап)
B2: ФАМИЛИЯ Имя и Отчество участника | C2: школа | D2: баллы | E2: % | F2: ФИО учителя | G2: макс кол-во баллов | H2: 50
A3: участник | B3: Кишкина Дарья Олеговна | C3: МБОУ "Вохтомская ОШ" | D3: 7 | E3: =7*100/50 -> 14 | F3: Рудакова О.М.
A4: участник | B4: Бормотова Маргарита Владимировна | C4: МБОУ "Ерцевская СШ им. С.И. Бочарова" | D4: 11 | E4: =11*100/50 -> 22 | F4: Черноусова Г.Д.
A5: участник | B5: Шатаев Семён Александрович | C5: МБОУ "Ерцевская СШ им. С.И. Бочарова" | D5: 7 | E5: =7*100/50 -> 14 | F5: Черноусова Г.Д.
A6: участник | B6: Черепанова Варвара Андреевна | C6: МБОУ "Ерцевская СШ им. С.И. Бочарова" | D6: 7 | E6: 14 | F6: Черноусова Г.Д.
A7: участник | B7: Горовенко Варвара Сергеевна | C7: МБОУ "Ерцевская СШ им. С.И. Бочарова" | D7: 3.5 | E7: =3.5*100/50 -> 7 | F7: Черноусова Г.Д.
A8: участник | B8: Козлов Станислав Викторович | C8: МБОУ "Климовская СШ" | D8: 7.5 | E8: 15 | F8: Пателина Е.М.
A9: участник | B9: Евдокимов Константин Александрович | C9: МБОУ "Коношеозерская СШ им. В.А.Корытова" | D9: 7.5 | E9: =D9*100/50 -> 15 | F9: Ионина О.А.
A10: участник | B10: Архачёва Василиса Витальевна | C10: МБОУ "Коношская СШ имени Н.П. Лавёрова" | D10: 17.5 | E10: =17.5*100/50 -> 35 | F10: Власова Г.В.
A11: участник | B11: Лукина Мария Алексеевна | C11: МБОУ "Коношская СШ имени Н.П. Лавёрова" | D11: 13.5 | E11: 27 | F11: Мерёжина Н.Н.
A12: участник | B12: Цеповяз Диана Александровна | C12: МБОУ "Коношская СШ имени Н.П. Лавёрова" | D12: 13.5 | E12: 27 | F12: Вилакова И.П.
A13: участник | B13: Букаева Таисия Дмитриевна | C13: МБОУ "Коношская СШ имени Н.П. Лавёрова" | D13: 13 | E13: =13*100/50 -> 26 | F13: Ершова Е.В.
A14: участник | B14: Скурихина Кира Андреевна | C14: МБОУ "Коношская СШ имени Н.П. Лавёрова" | D14: 12.5 | E14: 25 | F14: Мерёжина Н.Н.
A15: участник | B15: Панова Елизавета Александровна | C15: МБОУ "Коношская СШ имени Н.П. Лавёрова" | D15: 9 | E15: =9*100/50 -> 18 | F15: Власова Г.В.
A16: участник | B16: Власова Мария Игоревна | C16: МБОУ "Коношская СШ имени Н.П. Лавёрова" | D16: 8 | E16: 16 | F16: Мерёжина Н.Н.
A17: участник | B17: Юрин Артур Сергеевич | C17: МБОУ "Коношская СШ имени Н.П. Лавёрова" | D17: 7.5 | E17: 15 | F17: Ершова Е.В.
A18: участник | B18: Кожемякин Андрей Иванович | C18: МБОУ "Коношская СШ имени Н.П. Лавёрова" | D18: 7.5 | E18: 15 | F18: Власова Г.В.
A19: участник | B19: Андреев Илья Алексеевич | C19: МБОУ "Коношская СШ имени Н.П. Лавёрова" | D19: 4 | E19: 8 | F19: Ершова Е.В.
A20: участник | B20: Буторин Владимир Александрович | C20: МБОУ "Коношская СШ имени Н.П. Лавёрова" | D20: 0 | E20: 0 | F20: Власова Г.В.
A21: победитель | B21: Левшинова Олеся Васильевна | C21: МБОУ "Лесозаводская СШ" | D21: 28 | E21: =28*100/50 -> 56 | F21: Петрова Т.Н.
A22: участник | B22: Харламов Кирилл Сергеевич | C22: МБОУ "Лесозаводская СШ" | D22: 8 | E22: 16 | F22: Петрова Т.Н.
A23: участник | B23: Варганов Кирилл Андреевич | C23: МБОУ "Лесозаводская СШ" | D23: 6.5 | E23: 13 | F23: Петрова Т.Н.
A24: участник | B24: Кукушкина Маргарита Валерьевна | C24: МБОУ "Лесозаводская СШ" | D24: 4 | E24: 8 | F24: Петрова Т.Н.
A25: участник | B25: Сархадова Мария Валерьевна | C25: МБОУ "Подюжская СШ им. В.А. Абрамова" | D25: 17 | E25: =17*100/50 -> 34 | F25: Шубина Е.В.
A26: участник | B26: Мачаликашвили Айшат Мовсаровна | C26: МБОУ "Подюжская СШ им. В.А. Абрамова" | D26: 8 | E26: =D26*100/50 -> 16 | F26: Шубина Е.В.
A27: участник | B27: Страшненков Никита Андреевич | C27: МБОУ "Подюжская СШ им. В.А. Абрамова" | D27: 0 | E27: =D27*100/50 -> 0 | F27: Шубина Е.В.

Sheet 6 класс
B1: 6 класс Литература (школьный этап)
B2: ФАМИЛИЯ Имя и Отчество участника | C2: школа | D2: баллы | E2: % | F2: ФИО учителя | G2: макс кол-во баллов | H2: 50
A3: победитель | B3: Виноградов Алексей Владимирович | C3: МБОУ "Вохтомская ОШ" | D3: 35.5 | E3: =35.5*100/50 -> 71 | F3: Гольцева О.В.
A4: призер | B4: Юрина Ксения Анатольевна | C4: МБОУ "Лесозаводская СШ" | D4: 35 | E4: 70 | F4: Ткаченко А.Н.
A5: призер | B5: Куклинова Марьяна Сергеевна | C5: МБОУ "Подюжская СШ им. В.А. Абрамова" | D5: 32 | E5: =D5*100/50 -> 64 | F5: Шубина Е.В.
A6: призер | B6: Рыжков Артём Алексеевич | C6: МБОУ "Ерцевская СШ им. С.И. Бочарова" | D6: 29 | E6: =29*100/50 -> 58 | F6: Черноусова Г.Д.
A7: призер | B7: Гаврилова Мария Сергеевна | C7: МБОУ "Коношская СШ имени Н.П. Лавёрова" | D7: 25.5 | E7: =25.5*100/50 -> 51 | F7: Комотёсова Н.Н.
A8: призер | B8: Шахова Алина Алексеевна | C8: МБОУ "Климовская СШ" | D8: 24 | E8: =24*100/50 -> 48 | F8: Петрова М.Н.
A9: призер | B9: Лапочкина Арина Александровна | C9: МБОУ "Лесозаводская СШ" | D9: 22.5 | E9: =22.5*100/50 -> 45 | F9: Ткаченко А.Н.
A10: участник | B10: Черсунов Данил Сергеевич | C10: МБОУ "Подюжская СШ им. В.А. Абрамова" | D10: 20 | E10: =D10*100/50 -> 40 | F10: Шубина Е.В.
A11: участник | B11: Юсупмурзина Полина Юрьевна | C11: МБОУ "Подюжская СШ им. В.А. Абрамова" | D11: 16 | E11: =D11*100/50 -> 32 | F11: Шубина Е.В.
A12: участник | B12: Попова Алина Геннадьевна | C12: МБОУ "Коношская СШ имени Н.П. Лавёрова" | D12: 15.5 | E12: =15.5*100/50 -> 31 | F12: Ершова Е.В.
A13: участник | B13: Писарев Матвей Степанович | C13: МБОУ "Коношская СШ имени Н.П. Лавёрова" | D13: 15 | E13: =15*100/50 -> 30 | F13: Ершова Е.В.
A14: участник | B14: Жижикина Алена Сергеевна | C14: МБОУ "Коношская СШ имени Н.П. Лавёрова" | D14: 13.5 | E14: 27 | F14: Комотёсова Н.Н.
A15: участник | B15: Соколова Марина Алексеевна | C15: МБОУ "Ерцевская СШ им. С.И. Бочарова" | D15: 12.5 | E15: =12.5*100/50 -> 25 | F15: Черноусова Г.Д.
A16: участник | B16: Ибрагимов Руслан Александрович | C16: МБОУ "Коношская СШ имени Н.П. Лавёрова" | D16: 12 | E16: 24 | F16: Ершова Е.В.
A17: участник | B17: Орлова Дарья Сергеевна | C17: МБОУ "Лесозаводская СШ" | D17: 12 | E17: 24 | F17: Ткаченко А.Н.
A18: участник | B18: Аронова Ксения Евгеньевна | C18: МБОУ "Коношеозерская СШ им. В.А.Корытова" | D18: 11 | E18: =D18*100/50 -> 22 | F18: Ионина О.А.
A19: участник | B19: Черепанова Ульяна Сергеевна | C19: МБОУ "Коношская СШ имени Н.П. Лавёрова" | D19: 11 | E19: =11*100/50 -> 22 | F19: Ершова Е.В.
A20: участник | B20: Фрикликас Егор Максимович | C20: МБОУ "Ерцевская СШ им. С.И. Бочарова" | D20: 10.5 | E20: =10.5*100/50 -> 21 | F20: Черноусова Г.Д.
A21: участник | B21: Плотникова Полина Андреевна | C21: МБОУ "Лесозаводская СШ" | D21: 10 | E21: =10*100/50 -> 20 | F21: Ткаченко А.Н.
A22: участник | B22: Гергедава Анастасия Кахаевна | C22: МБОУ "Коношская СШ имени Н.П. Лавёрова" | D22: 8.5 | E22: =8.5*100/50 -> 17 | F22: Комотёсова Н.Н.
A23: участник | B23: Сидоровский Денис Сергеевич | C23: МБОУ "Коношская СШ имени Н.П. Лавёрова" | D23: 8 | E23: =8*100/50 -> 16 | F23: Ершова Е.В.
A24: участник | B24: Золтов Дмитрий Николаевич | C24: МБОУ "Ерцевская СШ им. С.И. Бочарова" | D24: 7 | E24: =7*100/50 -> 14 | F24: Каданцева Н.В.
A25: участник | B25: Базанов Евгений Дмитриевич | C25: МБОУ "Коношская СШ имени Н.П. Лавёрова" | D25: 7 | E25: 14 | F25: Пальчикова А.А
A26: участник | B26: Тупота Андрей Викторович | C26: МБОУ "Коношская СШ имени Н.П. Лавёрова" | D26: 6 | E26: =6*100/50 -> 12 | F26: Пальчикова А.А
A27: участник | B27: Пальчиков Александр Андреевич | C27: МБОУ "Ерцевская СШ им. С.И. Бочарова" | D27: 5 | E27: =5*100/50 -> 10 | F27: Черноусова Г.Д.
A28: участник | B28: Егоров Павел Александрович | C28: МБОУ "Коношеозерская СШ им. В.А.Корытова" | D28: 5 | E28: =D28*100/50 -> 10 | F28: Ионина О.А.
A29: участник | B29: Ивашов Роман Сергеевич | C29: МБОУ "Вохтомская ОШ" | D29: 4.5 | E29: 9 | F29: Гольцева О.В.
A30: участник | B30: Саримсаков Хаджиакбар Салимович | C30: МБОУ "Коношская СШ имени Н.П. Лавёрова" | D30: 2 | E30: =2*100/50 -> 4 | F30: Ершова Е.В.
A31: участник | B31: Юрьева Виктория Максимовна | C31: МБОУ "Ерцевская СШ им. С.И. Бочарова" | D31: 0 | E31: 0 | F31: Черноусова Г.Д.
A32: участник | B32: Лобачева Арина Дмитриевна | C32: МБОУ "Коношеозерская СШ им. В.А.Корытова" | D32: 0 | E32: =D32*100/50 -> 0 | F32: Ионина О.А.
A33: участник | B33: Башкирев Алексей Николаевич | C33: МБОУ "Коношеозерская СШ им. В.А.Корытова" | D33: 0 | E33: =D33*100/50 -> 0 | F33: Ионина О.А.
A34: участник | B34: Назаров Артём Иванович | C34: МБОУ "Коношеозерская СШ им. В.А.Корытова" | D34: 0 | E34: =D34*100/50 -> 0 | F34: Ионина О.А.
A35: участник | B35: Латкин Димитрий Александрович | C35: МБОУ "Коношеозерская СШ им. В.А.Корытова" | D35: 0 | E35: =D35*100/50 -> 0 | F35: Ионина О.А.

Sheet 7 класс
B1: 7 класс Литература (школьный этап) | F1: макс кол-во баллов | H1: 50
B2: ФАМИЛИЯ Имя и Отчество участника | C2: школа | D2: баллы | E2: % | F2: ФИО учителя
A3: участник | B3: Гандзий Иоланта Николаевна | C3: МБОУ "Вохтомская ОШ" | D3: 7 | E3: =7*100/50 -> 14 | F3: Гольцева О.В.
A4: участник | B4: Вавилина Варвара Алексеевна | C4: МБОУ "Ерцевская СШ им. С.И. Бочарова" | D4: 8 | E4: 16 | F4: Черноусова Г.Д.
A5: участник | B5: Виноградов Алексей Иванович | C5: МБОУ "Ерцевская СШ им. С.И. Бочарова" | D5: 8 | E5: =8*100/50 -> 16 | F5: Черноусова Г.Д.
A6: участник | B6: Змиевская Милана Александровна | C6: МБОУ "Ерцевская СШ им. С.И. Бочарова" | D6: 8 | E6: =8*100/50 -> 16 | F6: Черноусова Г.Д.
A7: участник | B7: Лыла София Эдуардовна | C7: МБОУ "Ерцевская СШ им. С.И. Бочарова" | D7: 6 | E7: =6*100/50 -> 12 | F7: Черноусова Г.Д.
A8: участник | B8: Малинина Елизавета Валерьевна | C8: МБОУ "Ерцевская СШ им. С.И. Бочарова" | D8: 4 | E8: =4*100/50 -> 8 | F8: Черноусова Г.Д.
A9: участник | B9: Малышкина Алиса Юрьевна | C9: МБОУ "Ерцевская СШ им. С.И. Бочарова" | D9: 11 | E9: =11*100/50 -> 22 | F9: Черноусова Г.Д.
A10: участник | B10: Руссу Дарина Руслановна | C10: МБОУ "Ерцевская СШ им. С.И. Бочарова" | D10: 4 | E10: =4*100/50 -> 8 | F10: Черноусова Г.Д.
A11: участник | B11: Силичева Варвара Дмитриевна | C11: МБОУ "Ерцевская СШ им. С.И. Бочарова" | D11: 9 | E11: =9*100/50 -> 18 | F11: Черноусова Г.Д.
A12: участник | B12: Черепанов Роман Дмитриевич | C12: МБОУ "Ерцевская СШ им. С.И. Бочарова" | D12: 8 | E12: =8*100/50 -> 16 | F12: Черноусова Г.Д.
A13: участник | B13: Илатовская София Алексеевна | C13: МБОУ "Коношеозерская СШ им. В.А.Корытова" | D13: 7 | E13: =D13*100/50 -> 14 | F13: Ефремычева Г.И.
A14: участник | B14: Филиппова Дарья Дмитриевна | C14: МБОУ "Коношеозерская СШ им. В.А.Корытова" | D14: 3 | E14: =D14*100/50 -> 6 | F14: Ефремычева Г.И.
A15: участник | B15: Филиппова Татьяна Дмитриевна | C15: МБОУ "Коношеозерская СШ им. В.А.Корытова" | D15: 17 | E15: =D15*100/50 -> 34 | F15: Ефремычева Г.И.
A16: участник | B16: Хохлов Данил Михайлович | C16: МБОУ "Коношеозерская СШ им. В.А.Корытова" | D16: 8 | E16: =D16*100/50 -> 16 | F16: Ефремычева Г.И.
A17: участник | B17: Вохтомин Тимур Алексеевич | C17: МБОУ "Коношская СШ имени Н.П. Лавёрова" | D17: 10 | E17: 20 | F17: Власова Г.В.
A18: победитель | B18: Горбачёва Алина Евгеньевна | C18: МБОУ "Коношская СШ имени Н.П. Лавёрова" | D18: 25 | E18: =25*100/50 -> 50 | F18: Кузнецова Л.В.
A19: участник | B19: Ершов Илья Владимирович | C19: МБОУ "Коношская СШ имени Н.П. Лавёрова" | D19: 10 | E19: =10*100/50 -> 20 | F19: Кузнецова Л.В.
A20: участник | B20: Киселева Полина Павловна | C20: МБОУ "Коношская СШ имени Н.П. Лавёрова" | D20: 5 | E20: 10 | F20: Комотёсова Н.Н.
A21: участник | B21: Мельникова Алина Андреевна | C21: МБОУ "Коношская СШ имени Н.П. Лавёрова" | D21: 20 | E21: =20*100/50 -> 40 | F21: Комотёсова Н.Н.
A22: участник | B22: Новгородова Виталина Алексеевна | C22: МБОУ "Коношская СШ имени Н.П. Лавёрова" | D22: 5 | E22: 10 | F22: Комотёсова Н.Н.
A23: участник | B23: Орехов Илья Артёмович | C23: МБОУ "Коношская СШ имени Н.П. Лавёрова" | D23: 10 | E23: =10*100/50 -> 20 | F23: Кузнецова Л.В.
A24: участник | B24: Тошова Ольга Шамшодовна | C24: МБОУ "Коношская СШ имени Н.П. Лавёрова" | D24: 10 | E24: =10*100/50 -> 20 | F24: Власова Г.В.
A25: участник | B25: Филин Денис Сергеевич | C25: МБОУ "Коношская СШ имени Н.П. Лавёрова" | D25: 5 | E25: =5*100/50 -> 10 | F25: Кузнецова Л.В.
A26: участник | B26: Фомина Полина Александровна | C26: МБОУ "Коношская СШ имени Н.П. Лавёрова" | D26: 15 | E26: =15*100/50 -> 30 | F26: Кузнецова Л.В.
A27: участник | B27: Кузнецова Анастасия Юрьевна | C27: МБОУ "Лесозаводская СШ" | D27: 16 | E27: =16*100/50 -> 32 | F27: Петрова Т.Н.
A28: участник | B28: Кусочкина Софья Андреевна | C28: МБОУ "Лесозаводская СШ" | D28: 5 | E28: 10 | F28: Ткаченко А.Н.
A29: участник | B29: Прибыткова Вероника Артёмовна | C29: МБОУ "Лесозаводская СШ" | D29: 22 | E29: =22*100/50 -> 44 | F29: Ткаченко А.Н.
A30: участник | B30: Решетникова Полина Михайловна | C30: МБОУ "Лесозаводская СШ" | D30: 5 | E30: 10 | F30: Ткаченко А.Н.
A31: участник | B31: Сиделёва Василиса Александровна | C31: МБОУ "Лесозаводская СШ" | D31: 4 | E31: 8 | F31: Петрова Т.Н.
A32: участник | B32: Смирнова Лидия Игоревна | C32: МБОУ "Лесозаводская СШ" | D32: 13 | E32: 26 | F32: Ткаченко А.Н.
A33: участник | B33: Топоров Арсений Григорьевич | C33: МБОУ "Лесозаводская СШ" | D33: 2 | E33: =2*100/50 -> 4 | F33: Петрова Т.Н.

Sheet 8 класс
B1: 8 класс Литература (школьный этап)
B2: Фамилия Имя и Отчество участника | C2: школа | D2: баллы | E2: % | F2: ФИО учителя | G2: макс кол-во баллов | H2: 50
A3: победитель | B3: Лопатина Варвара Викторовна | C3: МБОУ "Ерцевская СШ им. С.И. Бочарова" | D3: 30 | E3: 60 | F3: Каданцева Н.В.
A4: участник | B4: Смирнов Александр Дмитриевич | C4: МБОУ "Коношеозерская СШ им. В.А.Корытова" | D4: 19 | E4: =D4*100/50 -> 38 | F4: Ефремычева Г.И.
A5: участник | B5: Ожигин Максим Владимирович | C5: МБОУ "Коношеозерская СШ им. В.А.Корытова" | D5: 16 | E5: =D5*100/50 -> 32 | F5: Ефремычева Г.И.
A6: участник | B6: Замыцкий Михаил Евгеньевич | C6: МБОУ "Коношеозерская СШ им. В.А.Корытова" | D6: 11 | E6: =D6*100/50 -> 22 | F6: Ефремычева Г.И.
A7: участник | B7: Бажуков Антон Владимирович | C7: МБОУ "Коношеозерская СШ им. В.А.Корытова" | D7: 4 | E7: =D7*100/50 -> 8 | F7: Ефремычева Г.И.
A8: победитель | B8: Смирнова Софья Андреевна | C8: МБОУ "Коношская СШ имени Н.П. Лавёрова" | D8: 32 | E8: =32*100/50 -> 64 | F8: Власова Г.В.
A9: призер | B9: Подольская Кристина Максимовна | C9: МБОУ "Коношская СШ имени Н.П. Лавёрова" | D9: 30 | E9: 60 | F9: Власова Г.В.
A10: призер | B10: Ершова Анастасия Сергеевна | C10: МБОУ "Коношская СШ имени Н.П. Лавёрова" | D10: 28 | E10: 56 | F10: Кузнецова Л.В.
A11: призер | B11: Закатов Леонид Сергеевич | C11: МБОУ "Коношская СШ имени Н.П. Лавёрова" | D11: 25 | E11: 50 | F11: Власова Г.В.
A12: участник | B12: Лупандина Вероника Артемовна | C12: МБОУ "Коношская СШ имени Н.П. Лавёрова" | D12: 22 | E12: 44 | F12: Власова Г.В.
A13: участник | B13: Румянцев Илья Владимирович | C13: МБОУ "Коношская СШ имени Н.П. Лавёрова" | D13: 16 | E13: 32 | F13: Власова Г.В.
A14: участник | B14: Опаницына Диана Александровна | C14: МБОУ "Коношская СШ имени Н.П. Лавёрова" | D14: 12 | E14: =12*100/50 -> 24 | F14: Власова Г.В.
A15: участник | B15: Симановский Дмитрий Александрович | C15: МБОУ "Коношская СШ имени Н.П. Лавёрова" | D15: 9 | E15: 18 | F15: Власова Г.В.
A16: участник | B16: Шушерин Николай Михайлович | C16: МБОУ "Коношская СШ имени Н.П. Лавёрова" | D16: 7 | E16: 14 | F16: Пальчикова А.А.
A17: участник | B17: Кокачев Климентий Васильевич | C17: МБОУ "Коношская СШ имени Н.П. Лавёрова" | D17: 5 | E17: 10 | F17: Пальчикова А.А.
A18: участник | B18: Анфимова Елизавета Александровна | C18: МБОУ "Коношская СШ имени Н.П. Лавёрова" | D18: 5 | E18: 10 | F18: Власова Г.В.
A19: участник | B19: Григорьева Ксения Евгеньевна | C19: МБОУ "Коношская СШ имени Н.П. Лавёрова" | D19: 5 | E19: 10 | F19: Кузнецова Л.В.
A20: участник | B20: Трифанов Максим Сергеевич | C20: МБОУ "Коношская СШ имени Н.П. Лавёрова" | D20: 4 | E20: 8 | F20: Власова Г.В.
A21: участник | B21: Анфимова Валерия Александровна | C21: МБОУ "Коношская СШ имени Н.П. Лавёрова" | D21: 3 | E21: 6 | F21: Власова Г.В.
A22: участник | B22: Данилова Дарья Анатольевна | C22: МБОУ "Лесозаводская СШ" | D22: 20 | E22: 40 | F22: Ткаченко А.Н.

Sheet 9 класс
B1: 9 класс Литература (школьный этап)
B2: Фамилия Имя и Отчество участника | C2: школа | D2: баллы | E2: % | F2: ФИО учителя | G2: макс кол-во баллов | I2: 45
A3: победитель | B3: Ивашова Анна Сергеевна | C3: МБОУ "Вохтомская ОШ" | D3: 34 | E3: =D3*100/45 -> 76 | F3: Гольцева О.В.
A4: участник | B4: Лигостаева Екатерина Анатольевна | C4: МБОУ "Ерцевская СШ им. С.И. Бочарова" | D4: 6 | E4: 13 | F4: Каданцева Н.В.
A5: победитель | B5: Маурин Илья Николаевич | C5: МБОУ "Коношеозерская СШ им. В.А.Корытова" | D5: 30 | E5: 67 | F5: Ионина О.А.
A6: участник | B6: Васильев Максим Иванович | C6: МБОУ "Коношеозерская СШ им. В.А.Корытова" | D6: 15 | E6: 33 | F6: Ионина О.А.
A7: участник | B7: Киселев Максим Александрович | C7: МБОУ "Коношеозерская СШ им. В.А.Корытова" | D7: 3 | E7: 7 | F7: Ионина О.А.
A8: победитель | B8: Пинаевская Дарья Алексеевна | C8: МБОУ "Коношская СШ имени Н.П. Лавёрова" | D8: 30 | E8: 67 | F8: Мерёжина Н.Н.
A9: призер | B9: Катунина Полина Валерьевна | C9: МБОУ "Коношская СШ имени Н.П. Лавёрова" | D9: 28 | E9: 62 | F9: Вилакова И.П.
A10: призер | B10: Арсенина Нина Сергеевна | C10: МБОУ "Коношская СШ имени Н.П. Лавёрова" | D10: 27 | E10: 60 | F10: Вилакова И.П.
A11: призер | B11: Райков Степан Владимирович | C11: МБОУ "Коношская СШ имени Н.П. Лавёрова" | D11: 24 | E11: 53 | F11: Комотёсова Н.Н.
A12: призер | B12: Красов Арсений Сергеевич | C12: МБОУ "Коношская СШ имени Н.П. Лавёрова" | D12: 22 | E12: 49 | F12: Мерёжина Н.Н.
A13: призер | B13: Клюшанова Алина Вадимовна | C13: МБОУ "Коношская СШ имени Н.П. Лавёрова" | D13: 21 | E13: 47 | F13: Комотёсова Н.Н.
A14: участник | B14: Поздеева Влада Анатольевна | C14: МБОУ "Коношская СШ имени Н.П. Лавёрова" | D14: 20 | E14: 44 | F14: Вилакова И.П.
A15: участник | B15: Пригодин Андрей Алексеевич | C15: МБОУ "Коношская СШ имени Н.П. Лавёрова" | D15: 16 | E15: 36 | F15: Комотёсова Н.Н.
A16: участник | B16: Сёмова Ксения Николаевна | C16: МБОУ "Коношская СШ имени Н.П. Лавёрова" | D16: 14 | E16: 31 | F16: Комотёсова Н.Н.
A17: участник | B17: Глухарева Анна Николаевна | C17: МБОУ "Коношская СШ имени Н.П. Лавёрова" | D17: 12 | E17: 27 | F17: Вилакова И.П.
A18: участник | B18: Ермолин Максим Николаевич | C18: МБОУ "Коношская СШ имени Н.П. Лавёрова" | D18: 9 | E18: 20 | F18: Мерёжина Н.Н.
A19: участник | B19: Севастьянова Анастасия Алексеевна | C19: МБОУ "Коношская СШ имени Н.П. Лавёрова" | D19: 6 | E19: 13 | F19: Вилакова И.П.
A20: победитель | B20: Ракитина Дарья Владимировна | C20: МБОУ "Лесозаводская СШ" | D20: 29 | E20: 64 | F20: Ткаченко А.Н.
A21: призер | B21: Смирнова Милана Сергеевна | C21: МБОУ "Лесозаводская СШ" | D21: 28 | E21: 62 | F21: Ткаченко А.Н.
A22: призер | B22: Калинина Полина Максимовна | C22: МБОУ "Лесозаводская СШ" | D22: 28 | E22: 62 | F22: Ткаченко А.Н.
A23: призер | B23: Верещагина Юлия Сергеевна | C23: МБОУ "Лесозаводская СШ" | D23: 26 | E23: 58 | F23: Дубонос С.Н.
A24: участник | B24: Седунова Кристина Александровна | C24: МБОУ "Лесозаводская СШ" | D24: 12 | E24: 27 | F24: Ткаченко А.Н.

Sheet 10 класс
B1: 10 класс Литература(школьный этап)
B2: Фамилия Имя и Отчество участника | C2: школа | D2: баллы | E2: % | F2: ФИО учителя | G2: макс кол-во баллов | H2: 45
A3: победитель | B3: Колесникович Карина Александровна | C3: МБОУ "Коношеозерская СШ им. В.А.Корытова" | D3: 32 | E3: =D3*100/45 -> 71 | F3: Ионина О.А.
A4: призер | B4: Шилова Светлана Александровна | C4: МБОУ "Коношеозерская СШ им. В.А.Корытова" | D4: 22 | E4: =D4*100/45 -> 49 | F4: Ионина О.А.
A5: участник | B5: Терёхина Карина Александровна | C5: МБОУ "Коношеозерская СШ им. В.А.Корытова" | D5: 0 | E5: =D5*100/45 -> 0 | F5: Ионина О.А.
A6: победитель | B6: Куланин Матвей Андреевич | C6: МБОУ "Коношская СШ имени Н.П. Лавёрова" | D6: 35 | E6: =35*100/45 -> 78 | F6: Мерёжина Н.Н.
A7: призер | B7: Решетникова Елизавета Владимировна | C7: МБОУ "Коношская СШ имени Н.П. Лавёрова" | D7: 30 | E7: =30*100/45 -> 67 | F7: Мерёжина Н.Н.
A8: призер | B8: Юрьева Ксения Васильевна | C8: МБОУ "Коношская СШ имени Н.П. Лавёрова" | D8: 29 | E8: =29*100/45 -> 64 | F8: Мерёжина Н.Н.
A9: призер | B9: Лукаш Анастасия Павловна | C9: МБОУ "Коношская СШ имени Н.П. Лавёрова" | D9: 28 | E9: =28*100/45 -> 62 | F9: Мерёжина Н.Н.
A10: призер | B10: Горчакова Алёна Александровна | C10: МБОУ "Лесозаводская СШ" | D10: 26 | E10: =26*100/45 -> 58 | F10: Петрова Т.Н.
A11: участник | B11: Б\урлака Алиса Алексеевна | C11: МБОУ "Лесозаводская СШ" | D11: 20 | E11: =20*100/45 -> 44 | F11: Петрова Т.Н.
A12: участник | B12: Тухватчина Евгения Романовна | C12: МБОУ "Подюжская СШ им. В.А. Абрамова" | D12: 15 | E12: =D12*100/45 -> 33 | F12: Быкова А.В.

Sheet 11 класс
B1: 11 класс Литература (школьный этап)
B2: Фамилия Имя и Отчество участника | C2: школа | D2: баллы | E2: % | F2: ФИО учителя | G2: макс кол-во баллов | H2: 45
A3: победитель | B3: Валуевич Арина Алексеевна | C3: МБОУ "Ерцевская СШ им. С.И. Бочарова" | D3: 25 | E3: =25*100/45 -> 56 | F3: Пугачева И.Г.
A4: участник | B4: Наумов Вячеслав Александрович | C4: МБОУ "Коношеозерская СШ им. В.А.Корытова" | D4: 8 | E4: =D4*100/45 -> 18 | F4: Ефремычева Г.И.
A5: участник | B5: Старцева Екатерина Александровна | C5: МБОУ "Коношеозерская СШ им. В.А.Корытова" | D5: 8 | E5: =D5*100/45 -> 18 | F5: Ефремычева Г.И.
A6: участник | B6: Кзенкова Олеся Алексеевна | C6: МБОУ "Коношеозерская СШ им. В.А.Корытова" | D6: 5 | E6: =D6*100/45 -> 11 | F6: Ефремычева Г.И.
A7: победитель | B7: Васильева Карина Сергеевна | C7: МБОУ "Коношская СШ имени Н.П. Лавёрова" | D7: 45 | E7: 100 | F7: Мерёжина Н.Н.
A8: призер | B8: Ерина Арина Олеговна | C8: МБОУ "Коношская СШ имени Н.П. Лавёрова" | D8: 30 | E8: =30*100/45 -> 67 | F8: Мерёжина Н.Н.
A9: призер | B9: Корытова Полина Владимировна | C9: МБОУ "Подюжская СШ им. В.А. Абрамова" | D9: 34 | E9: =D9*100/45 -> 76 | F9: Корытова Е.М.
A10: призер | B10: Скалозубова София Андреевна | C10: МБОУ "Подюжская СШ им. В.А. Абрамова" | D10: 23 | E10: =D10*100/45 -> 51 | F10: Корытова Е.М.
A11: победитель | B11: Кулик Ольга Павловна | C11: МБОУ "Тавреньгская СШ" | D11: 28 | E11: =D11*100/45 -> 62 | F11: Сидоровская Е. В.
